[Event "Titled Tuesday Blitz December 20 Early 2022"]
[White "Moh, Teng Keong Deon"]
[Black "Nithisker, P"]
[WhiteFideId "5700868"]
[BlackFideId "33434786"]
[WhiteElo "2215"]
[BlackElo "2346"]
[Result "1-0"]
[Round "09"]
[TimeControl "180+2"]
[Date "2022.12.20"]
[WhiteClock "0:00:04"]
[BlackClock "0:00:04"]

1. e4 {[%clk 0:02:53]}  e5 {[%clk 0:03:00]} 2. Nc3 {[%clk 0:02:52]}  Nf6 {[%clk 0:02:58]} 3. g3 {[%clk 0:02:52]}  d5 {[%clk 0:02:56]} 4. exd5 {[%clk 0:02:53]}  Nxd5 {[%clk 0:02:56]} 5. Bg2 {[%clk 0:02:54]}  Nxc3 {[%clk 0:02:53]} 6. bxc3 {[%clk 0:02:54]}  Be7 {[%clk 0:02:53]} 7. Nf3 {[%clk 0:02:55]}  Bf6 {[%clk 0:02:52]} 8. O-O {[%clk 0:02:52]}  O-O {[%clk 0:02:50]} 9. Re1 {[%clk 0:02:53]}  Nd7 {[%clk 0:02:46]} 10. d4 {[%clk 0:02:52]}  exd4 {[%clk 0:02:34]} 11. cxd4 {[%clk 0:02:53]}  c6 {[%clk 0:02:31]} 12. a4 {[%clk 0:02:00]}  a5 {[%clk 0:01:54]} 13. c4 {[%clk 0:01:50]}  Nb6 {[%clk 0:01:40]} 14. Ba3 {[%clk 0:01:38]}  Re8 {[%clk 0:01:40]} 15. Rxe8+ {[%clk 0:01:39]}  Qxe8 {[%clk 0:01:40]} 16. Qb3 {[%clk 0:01:39]}  Qd8 {[%clk 0:01:34]} 17. Rb1 {[%clk 0:01:36]}  Ra6 {[%clk 0:01:18]} 18. Bf1 {[%clk 0:00:57]}  Be6 {[%clk 0:01:09]} 19. Bc5 {[%clk 0:00:29]}  Nd7 {[%clk 0:00:54]} 20. Qxb7 {[%clk 0:00:29]}  Nxc5 {[%clk 0:00:52]} 21. dxc5 {[%clk 0:00:30]}  Bc8 {[%clk 0:00:37]} 22. Qb8 {[%clk 0:00:23]}  Be7 {[%clk 0:00:32]} 23. Ne5 {[%clk 0:00:14]}  Bxc5 {[%clk 0:00:26]} 24. Bg2 {[%clk 0:00:11]}  Ba7 {[%clk 0:00:21]} 25. Nxc6 {[%clk 0:00:05]}  Bxb8 {[%clk 0:00:14]} 26. Nxd8 {[%clk 0:00:05]}  Bc7 {[%clk 0:00:14]} 27. Nb7 {[%clk 0:00:04]}  Rf6 {[%clk 0:00:11]} 28. Nc5 {[%clk 0:00:03]}  Bb6 {[%clk 0:00:09]} 29. Ne4 {[%clk 0:00:02]}  Re6 {[%clk 0:00:08]} 30. c5 {[%clk 0:00:03]}  Bc7 {[%clk 0:00:08]} 31. Rd1 {[%clk 0:00:02]}  f5 {[%clk 0:00:07]} 32. Nd6 {[%clk 0:00:03]}  Ba6 {[%clk 0:00:06]} 33. Bd5 {[%clk 0:00:03]}  Bxd6 {[%clk 0:00:01]} 34. Bxe6+ {[%clk 0:00:03]}  Kf8 {[%clk 0:00:02]} 35. cxd6 {[%clk 0:00:04]}  Ke8 {[%clk 0:00:02]} 36. d7+ {[%clk 0:00:04]}  Kd8 {[%clk 0:00:03]} 37. Rc1 {[%clk 0:00:03]}  Be2 {[%clk 0:00:03]} 38. Rc8+ {[%clk 0:00:03]}  Ke7 {[%clk 0:00:04]} 39. d8=Q+ {[%clk 0:00:04]} 1-0


[Site "https://www.chess.com"]

[Event "Titled Tuesday Blitz December 20 Early 2022"]
[White "Mohammed, Dilshad"]
[Black "dirk_da_player"]
[WhiteFideId "5050421"]
[WhiteElo "2103"]
[BlackElo "2339"]
[Result "0-1"]
[Round "09"]
[TimeControl "180+2"]
[Date "2022.12.20"]
[WhiteClock "0:00:37"]
[BlackClock "0:01:03"]

1. Nf3 {[%clk 0:02:56]}  Nf6 {[%clk 0:02:59]} 2. c4 {[%clk 0:02:52]}  c6 {[%clk 0:02:59]} 3. Nc3 {[%clk 0:02:47]}  d5 {[%clk 0:02:59]} 4. e3 {[%clk 0:02:46]}  e6 {[%clk 0:02:58]} 5. d4 {[%clk 0:02:44]}  Nbd7 {[%clk 0:02:58]} 6. Bd3 {[%clk 0:02:43]}  Bd6 {[%clk 0:02:54]} 7. a4 {[%clk 0:02:43]}  O-O {[%clk 0:02:51]} 8. O-O {[%clk 0:02:43]}  dxc4 {[%clk 0:02:41]} 9. Bxc4 {[%clk 0:02:43]}  e5 {[%clk 0:02:41]} 10. Qc2 {[%clk 0:02:37]}  Qc7 {[%clk 0:02:39]} 11. Rd1 {[%clk 0:02:34]}  exd4 {[%clk 0:02:36]} 12. exd4 {[%clk 0:02:34]}  Nb6 {[%clk 0:02:31]} 13. Ba2 {[%clk 0:02:31]}  Bg4 {[%clk 0:02:29]} 14. Rd3 {[%clk 0:02:13]}  Bf5 {[%clk 0:02:23]} 15. Bg5 {[%clk 0:02:04]}  Nfd5 {[%clk 0:02:09]} 16. Nxd5 {[%clk 0:02:00]}  Nxd5 {[%clk 0:02:08]} 17. Bxd5 {[%clk 0:01:51]}  Bxd3 {[%clk 0:02:07]} 18. Bxf7+ {[%clk 0:01:47]}  Qxf7 {[%clk 0:02:01]} 19. Qxd3 {[%clk 0:01:48]}  Bf4 {[%clk 0:02:00]} 20. Bh4 {[%clk 0:01:48]}  Qd5 {[%clk 0:01:56]} 21. a5 {[%clk 0:01:42]}  a6 {[%clk 0:01:55]} 22. Be7 {[%clk 0:01:31]}  Rfe8 {[%clk 0:01:52]} 23. Bc5 {[%clk 0:01:31]}  Rad8 {[%clk 0:01:49]} 24. g3 {[%clk 0:01:30]}  Qxc5 {[%clk 0:01:31]} 25. gxf4 {[%clk 0:01:27]}  Qd5 {[%clk 0:01:30]} 26. Rd1 {[%clk 0:01:11]}  c5 {[%clk 0:01:23]} 27. Ng5 {[%clk 0:01:05]}  g6 {[%clk 0:01:22]} 28. Qh3 {[%clk 0:01:02]}  Re7 {[%clk 0:01:17]} 29. Qh4 {[%clk 0:01:00]}  Rde8 {[%clk 0:01:13]} 30. f3 {[%clk 0:00:40]}  cxd4 {[%clk 0:01:09]} 31. Ne4 {[%clk 0:00:40]}  Rxe4 {[%clk 0:01:06]} 32. fxe4 {[%clk 0:00:41]}  Qxe4 {[%clk 0:01:06]} 33. Qf6 {[%clk 0:00:37]}  Qe3+ {[%clk 0:01:03]} 0-1


[Site "https://www.chess.com"]

[Event "Titled Tuesday Blitz December 20 Early 2022"]
[White "Mone, Ved"]
[Black "ChessTankMan"]
[WhiteFideId "25666290"]
[WhiteElo "1254"]
[BlackElo "2514"]
[Result "1-0"]
[Round "09"]
[TimeControl "180+2"]
[Date "2022.12.20"]
[WhiteClock "0:01:27"]
[BlackClock "0:01:45"]

1. e4 {[%clk 0:03:00]}  c5 {[%clk 0:02:59]} 2. Nf3 {[%clk 0:03:00]}  e6 {[%clk 0:02:59]} 3. d4 {[%clk 0:03:01]}  cxd4 {[%clk 0:03:00]} 4. Nxd4 {[%clk 0:03:02]}  a6 {[%clk 0:03:00]} 5. Bd3 {[%clk 0:03:01]}  Nf6 {[%clk 0:03:00]} 6. Nc3 {[%clk 0:03:00]}  Qc7 {[%clk 0:03:00]} 7. O-O {[%clk 0:02:57]}  b5 {[%clk 0:03:00]} 8. a3 {[%clk 0:02:56]}  Bb7 {[%clk 0:02:59]} 9. Kh1 {[%clk 0:02:53]}  d6 {[%clk 0:02:58]} 10. f4 {[%clk 0:02:53]}  Nbd7 {[%clk 0:02:58]} 11. Be3 {[%clk 0:02:51]}  Be7 {[%clk 0:02:58]} 12. Qe2 {[%clk 0:02:46]}  O-O {[%clk 0:02:58]} 13. Rad1 {[%clk 0:02:46]}  Rac8 {[%clk 0:02:58]} 14. Nf3 {[%clk 0:02:42]}  Rfd8 {[%clk 0:02:54]} 15. Bg1 {[%clk 0:02:34]}  Nc5 {[%clk 0:02:41]} 16. e5 {[%clk 0:02:28]}  Nd5 {[%clk 0:02:35]} 17. Nxd5 {[%clk 0:02:24]}  Bxd5 {[%clk 0:02:33]} 18. exd6 {[%clk 0:02:23]}  Bxd6 {[%clk 0:02:33]} 19. Bxc5 {[%clk 0:02:16]}  Bxc5 {[%clk 0:02:32]} 20. Ne5 {[%clk 0:01:58]}  f6 {[%clk 0:02:25]} 21. Qh5 {[%clk 0:01:54]}  g6 {[%clk 0:02:13]} 22. Nxg6 {[%clk 0:01:40]}  hxg6 {[%clk 0:02:11]} 23. Bxg6 {[%clk 0:01:41]}  Qg7 {[%clk 0:02:07]} 24. Rd3 {[%clk 0:01:32]}  Qh8 {[%clk 0:01:49]} 25. Bf7+ {[%clk 0:01:28]}  Kg7 {[%clk 0:01:45]} 26. Rg3+ {[%clk 0:01:27]} 1-0


[Site "https://www.chess.com"]

[Event "Titled Tuesday Blitz December 20 Early 2022"]
[White "Najdoski, Toni"]
[Black "Badlyplayed"]
[WhiteFideId "15001334"]
[WhiteElo "2598"]
[BlackElo "2262"]
[Result "1-0"]
[Round "09"]
[TimeControl "180+2"]
[Date "2022.12.20"]
[WhiteClock "0:00:51"]
[BlackClock "0:00:01"]

1. e4 {[%clk 0:03:00]}  c5 {[%clk 0:02:59]} 2. Nc3 {[%clk 0:03:00]}  Nc6 {[%clk 0:02:58]} 3. Bb5 {[%clk 0:02:59]}  g6 {[%clk 0:02:55]} 4. Bxc6 {[%clk 0:02:58]}  bxc6 {[%clk 0:02:49]} 5. f4 {[%clk 0:02:59]}  Bg7 {[%clk 0:02:49]} 6. Nf3 {[%clk 0:02:59]}  d6 {[%clk 0:02:43]} 7. d3 {[%clk 0:02:56]}  Nf6 {[%clk 0:02:36]} 8. O-O {[%clk 0:02:52]}  O-O {[%clk 0:02:35]} 9. Qe1 {[%clk 0:02:53]}  Bg4 {[%clk 0:02:03]} 10. f5 {[%clk 0:02:39]}  Bxf3 {[%clk 0:01:46]} 11. Rxf3 {[%clk 0:02:37]}  Ng4 {[%clk 0:01:41]} 12. Qh4 {[%clk 0:02:33]}  h5 {[%clk 0:01:17]} 13. h3 {[%clk 0:02:29]}  Ne5 {[%clk 0:01:10]} 14. Rg3 {[%clk 0:02:28]}  Bf6 {[%clk 0:00:50]} 15. Qxh5 {[%clk 0:02:24]}  Bg7 {[%clk 0:00:38]} 16. Qh4 {[%clk 0:02:05]}  Qb6 {[%clk 0:00:29]} 17. Qxe7 {[%clk 0:01:38]}  Qd8 {[%clk 0:00:28]} 18. Bg5 {[%clk 0:01:13]}  f6 {[%clk 0:00:22]} 19. Qxd8 {[%clk 0:01:13]}  Rfxd8 {[%clk 0:00:19]} 20. Bf4 {[%clk 0:01:13]}  g5 {[%clk 0:00:18]} 21. Bxe5 {[%clk 0:01:14]}  dxe5 {[%clk 0:00:18]} 22. b3 {[%clk 0:01:14]}  Kf7 {[%clk 0:00:14]} 23. Rf3 {[%clk 0:01:12]}  a5 {[%clk 0:00:14]} 24. Na4 {[%clk 0:01:06]}  Bf8 {[%clk 0:00:13]} 25. Nb6 {[%clk 0:01:04]}  Rab8 {[%clk 0:00:11]} 26. Nc4 {[%clk 0:01:05]}  a4 {[%clk 0:00:10]} 27. g3 {[%clk 0:01:05]}  axb3 {[%clk 0:00:10]} 28. axb3 {[%clk 0:01:06]}  Ra8 {[%clk 0:00:10]} 29. Rff1 {[%clk 0:01:06]}  Be7 {[%clk 0:00:09]} 30. Kg2 {[%clk 0:01:05]}  Bf8 {[%clk 0:00:08]} 31. Kf3 {[%clk 0:01:05]}  Be7 {[%clk 0:00:08]} 32. Ke2 {[%clk 0:01:04]}  Bf8 {[%clk 0:00:08]} 33. Nb6 {[%clk 0:01:00]}  Rxa1 {[%clk 0:00:07]} 34. Rxa1 {[%clk 0:01:01]}  Rb8 {[%clk 0:00:07]} 35. Nc4 {[%clk 0:01:00]}  Be7 {[%clk 0:00:06]} 36. Ra7 {[%clk 0:00:59]}  Ke8 {[%clk 0:00:05]} 37. Na5 {[%clk 0:00:58]}  Rb6 {[%clk 0:00:04]} 38. h4 {[%clk 0:00:52]}  Bd6 {[%clk 0:00:04]} 39. Nc4 {[%clk 0:00:51]}  Bb8 {[%clk 0:00:03]} 40. Nxb6 {[%clk 0:00:51]}  Bxa7 {[%clk 0:00:01]} 41. Nc8 {[%clk 0:00:51]} 1-0


[Site "https://www.chess.com"]

[Event "Titled Tuesday Blitz December 20 Early 2022"]
[White "Nau, Guenter"]
[Black "Forgacs, Gyula"]
[WhiteFideId "4661419"]
[BlackFideId "701203"]
[WhiteElo "2205"]
[BlackElo "2305"]
[Result "0-1"]
[Round "09"]
[TimeControl "180+2"]
[Date "2022.12.20"]
[WhiteClock "0:00:05"]
[BlackClock "0:00:46"]

1. d4 {[%clk 0:02:57]}  Nf6 {[%clk 0:02:59]} 2. c4 {[%clk 0:02:56]}  d6 {[%clk 0:02:59]} 3. Nc3 {[%clk 0:02:56]}  Nbd7 {[%clk 0:03:00]} 4. Nf3 {[%clk 0:02:56]}  g6 {[%clk 0:02:59]} 5. e4 {[%clk 0:02:54]}  e5 {[%clk 0:03:00]} 6. Bg5 {[%clk 0:02:51]}  Bg7 {[%clk 0:03:00]} 7. dxe5 {[%clk 0:02:47]}  dxe5 {[%clk 0:02:59]} 8. Nd5 {[%clk 0:02:47]}  c6 {[%clk 0:02:55]} 9. Nxf6+ {[%clk 0:02:47]}  Bxf6 {[%clk 0:02:56]} 10. Bh6 {[%clk 0:02:46]}  Nc5 {[%clk 0:02:45]} 11. Qc2 {[%clk 0:02:32]}  Qa5+ {[%clk 0:02:23]} 12. Bd2 {[%clk 0:02:27]}  Qc7 {[%clk 0:02:21]} 13. Bh6 {[%clk 0:02:26]}  Bg4 {[%clk 0:02:17]} 14. Be2 {[%clk 0:02:25]}  O-O-O {[%clk 0:02:13]} 15. O-O {[%clk 0:02:15]}  Ne6 {[%clk 0:02:10]} 16. Be3 {[%clk 0:01:55]}  Kb8 {[%clk 0:02:03]} 17. Rfd1 {[%clk 0:01:53]}  Bxf3 {[%clk 0:01:57]} 18. Bxf3 {[%clk 0:01:53]}  Nd4 {[%clk 0:01:58]} 19. Bxd4 {[%clk 0:01:50]}  exd4 {[%clk 0:01:59]} 20. g3 {[%clk 0:01:37]}  h5 {[%clk 0:01:57]} 21. Bg2 {[%clk 0:01:24]}  h4 {[%clk 0:01:50]} 22. f4 {[%clk 0:01:13]}  hxg3 {[%clk 0:01:47]} 23. hxg3 {[%clk 0:01:12]}  d3 {[%clk 0:01:32]} 24. Rxd3 {[%clk 0:01:10]}  Bd4+ {[%clk 0:01:33]} 25. Kf1 {[%clk 0:00:59]}  Rh2 {[%clk 0:01:30]} 26. Qd1 {[%clk 0:00:42]}  c5 {[%clk 0:01:27]} 27. b4 {[%clk 0:00:33]}  Rdh8 {[%clk 0:01:27]} 28. Rxd4 {[%clk 0:00:31]}  cxd4 {[%clk 0:01:23]} 29. Qxd4 {[%clk 0:00:19]}  Rd8 {[%clk 0:01:20]} 30. Qc3 {[%clk 0:00:12]}  g5 {[%clk 0:01:17]} 31. e5 {[%clk 0:00:10]}  gxf4 {[%clk 0:01:16]} 32. gxf4 {[%clk 0:00:10]}  Rg8 {[%clk 0:01:15]} 33. Be4 {[%clk 0:00:07]}  Qb6 {[%clk 0:00:51]} 34. c5 {[%clk 0:00:06]}  Qb5+ {[%clk 0:00:51]} 35. Qd3 {[%clk 0:00:05]}  Qxd3+ {[%clk 0:00:45]} 36. Bxd3 {[%clk 0:00:05]}  Rh1+ {[%clk 0:00:46]} 0-1


[Site "https://www.chess.com"]

[Event "Titled Tuesday Blitz December 20 Early 2022"]
[White "Nyambe, Maketo"]
[Black "Linhart, Wolfgang"]
[WhiteFideId "8700915"]
[BlackFideId "4636244"]
[WhiteElo "2091"]
[BlackElo "2114"]
[Result "1-0"]
[Round "09"]
[TimeControl "180+2"]
[Date "2022.12.20"]
[WhiteClock "0:00:05"]
[BlackClock "0:00:01"]

1. e4 {[%clk 0:03:00]}  c5 {[%clk 0:02:59]} 2. Nf3 {[%clk 0:03:00]}  d6 {[%clk 0:02:59]} 3. d4 {[%clk 0:03:01]}  cxd4 {[%clk 0:02:59]} 4. Nxd4 {[%clk 0:03:01]}  Nf6 {[%clk 0:02:59]} 5. Nc3 {[%clk 0:03:02]}  Nc6 {[%clk 0:02:59]} 6. Bg5 {[%clk 0:03:01]}  e6 {[%clk 0:02:59]} 7. Qd2 {[%clk 0:03:02]}  a6 {[%clk 0:02:59]} 8. O-O-O {[%clk 0:03:01]}  Bd7 {[%clk 0:02:59]} 9. f3 {[%clk 0:03:00]}  b5 {[%clk 0:02:57]} 10. Nxc6 {[%clk 0:02:50]}  Bxc6 {[%clk 0:02:56]} 11. Ne2 {[%clk 0:02:51]}  Qc7 {[%clk 0:02:46]} 12. Bxf6 {[%clk 0:02:46]}  gxf6 {[%clk 0:02:45]} 13. Nd4 {[%clk 0:02:47]}  Rc8 {[%clk 0:02:44]} 14. Nxc6 {[%clk 0:02:41]}  Qxc6 {[%clk 0:02:44]} 15. Kb1 {[%clk 0:02:42]}  Bh6 {[%clk 0:02:38]} 16. Qd3 {[%clk 0:02:32]}  O-O {[%clk 0:02:27]} 17. g3 {[%clk 0:02:26]}  Rfd8 {[%clk 0:02:25]} 18. f4 {[%clk 0:02:20]}  Bf8 {[%clk 0:02:05]} 19. Bg2 {[%clk 0:02:18]}  a5 {[%clk 0:01:47]} 20. Rd2 {[%clk 0:02:12]}  Qc4 {[%clk 0:01:43]} 21. Qf3 {[%clk 0:02:08]}  b4 {[%clk 0:01:36]} 22. Rhd1 {[%clk 0:01:57]}  a4 {[%clk 0:01:34]} 23. Bf1 {[%clk 0:01:24]}  Qc6 {[%clk 0:01:20]} 24. f5 {[%clk 0:01:17]}  e5 {[%clk 0:00:59]} 25. Qg4+ {[%clk 0:01:14]}  Kh8 {[%clk 0:00:54]} 26. Qh4 {[%clk 0:01:08]}  Bg7 {[%clk 0:00:54]} 27. Bd3 {[%clk 0:00:40]}  a3 {[%clk 0:00:53]} 28. g4 {[%clk 0:00:32]}  axb2 {[%clk 0:00:47]} 29. g5 {[%clk 0:00:27]}  Ra8 {[%clk 0:00:26]} 30. gxf6 {[%clk 0:00:25]}  Qa4 {[%clk 0:00:26]} 31. fxg7+ {[%clk 0:00:22]}  Kg8 {[%clk 0:00:26]} 32. Bc4 {[%clk 0:00:22]}  Rdc8 {[%clk 0:00:20]} 33. Bb3 {[%clk 0:00:19]}  Qa7 {[%clk 0:00:20]} 34. Rxd6 {[%clk 0:00:17]}  Rc3 {[%clk 0:00:19]} 35. Qf6 {[%clk 0:00:10]}  Re8 {[%clk 0:00:09]} 36. Rd8 {[%clk 0:00:05]}  Rc8 {[%clk 0:00:08]} 37. R8d7 {[%clk 0:00:05]}  Qf2 {[%clk 0:00:01]} 38. Qxf7# {[%clk 0:00:05]} 1-0


[Site "https://www.chess.com"]

[Event "Titled Tuesday Blitz December 20 Early 2022"]
[White "Pitcher, John"]
[Black "Schattmann, Alfred"]
[WhiteFideId "411485"]
[BlackFideId "4662377"]
[WhiteElo "2210"]
[BlackElo "1746"]
[Result "1/2-1/2"]
[Round "09"]
[TimeControl "180+2"]
[Date "2022.12.20"]
[WhiteClock "0:02:12"]
[BlackClock "0:02:01"]

1. e4 {[%clk 0:03:00]}  e5 {[%clk 0:02:59]} 2. Nc3 {[%clk 0:03:00]}  Nf6 {[%clk 0:02:58]} 3. d4 {[%clk 0:03:01]}  exd4 {[%clk 0:02:54]} 4. Qxd4 {[%clk 0:03:02]}  Nc6 {[%clk 0:02:54]} 5. Qd3 {[%clk 0:03:02]}  Bb4 {[%clk 0:02:49]} 6. Bd2 {[%clk 0:03:02]}  d6 {[%clk 0:02:45]} 7. O-O-O {[%clk 0:02:59]}  O-O {[%clk 0:02:44]} 8. Nge2 {[%clk 0:02:57]}  Ne5 {[%clk 0:02:30]} 9. Qg3 {[%clk 0:02:56]}  Nh5 {[%clk 0:02:26]} 10. Qg5 {[%clk 0:02:34]}  Qxg5 {[%clk 0:02:03]} 11. Bxg5 {[%clk 0:02:33]}  f6 {[%clk 0:02:02]} 12. Bh4 {[%clk 0:02:24]}  g5 {[%clk 0:02:01]} 13. Bg3 {[%clk 0:02:12]}  Nxg3 {[%clk 0:02:01]} 1/2-1/2


[Site "https://www.chess.com"]

[Event "Titled Tuesday Blitz December 20 Early 2022"]
[White "Rakesh, Kumar Jena"]
[Black "Truequitos"]
[WhiteFideId "5084822"]
[WhiteElo "2303"]
[BlackElo "2536"]
[Result "0-1"]
[Round "09"]
[TimeControl "180+2"]
[Date "2022.12.20"]
[WhiteClock "0:00:01"]
[BlackClock "0:00:04"]

1. Nf3 {[%clk 0:02:55]}  d5 {[%clk 0:02:55]} 2. b3 {[%clk 0:02:56]}  Nf6 {[%clk 0:02:55]} 3. Bb2 {[%clk 0:02:56]}  c6 {[%clk 0:02:55]} 4. e3 {[%clk 0:02:57]}  Bf5 {[%clk 0:02:55]} 5. c4 {[%clk 0:02:57]}  e6 {[%clk 0:02:55]} 6. Nc3 {[%clk 0:02:57]}  Bd6 {[%clk 0:02:56]} 7. d4 {[%clk 0:02:55]}  O-O {[%clk 0:02:56]} 8. Bd3 {[%clk 0:02:56]}  Bg6 {[%clk 0:02:56]} 9. O-O {[%clk 0:02:56]}  Nbd7 {[%clk 0:02:55]} 10. Rc1 {[%clk 0:02:55]}  Qe7 {[%clk 0:02:54]} 11. Re1 {[%clk 0:02:55]}  Rfd8 {[%clk 0:02:46]} 12. h3 {[%clk 0:02:53]}  e5 {[%clk 0:02:41]} 13. dxe5 {[%clk 0:02:51]}  Nxe5 {[%clk 0:02:38]} 14. cxd5 {[%clk 0:02:47]}  cxd5 {[%clk 0:02:34]} 15. Bxg6 {[%clk 0:02:40]}  hxg6 {[%clk 0:02:33]} 16. Nb5 {[%clk 0:02:26]}  Nxf3+ {[%clk 0:02:26]} 17. Qxf3 {[%clk 0:02:25]}  Be5 {[%clk 0:02:25]} 18. Bxe5 {[%clk 0:02:24]}  Qxe5 {[%clk 0:02:26]} 19. Red1 {[%clk 0:02:21]}  Ne4 {[%clk 0:02:25]} 20. Qf4 {[%clk 0:02:02]}  Qb2 {[%clk 0:02:23]} 21. f3 {[%clk 0:01:49]}  Qf2+ {[%clk 0:02:14]} 22. Kh2 {[%clk 0:01:47]}  g5 {[%clk 0:02:15]} 23. Qg4 {[%clk 0:01:31]}  Nd2 {[%clk 0:02:00]} 24. Nc7 {[%clk 0:01:16]}  Rac8 {[%clk 0:01:50]} 25. Nxd5 {[%clk 0:01:15]}  Rxc1 {[%clk 0:01:42]} 26. Rxc1 {[%clk 0:01:14]}  Nf1+ {[%clk 0:01:41]} 27. Kh1 {[%clk 0:00:58]}  Ng3+ {[%clk 0:01:18]} 28. Kh2 {[%clk 0:00:57]}  Ne2 {[%clk 0:01:18]} 29. Ne7+ {[%clk 0:00:25]}  Kf8 {[%clk 0:01:09]} 30. Qxg5 {[%clk 0:00:10]}  f6 {[%clk 0:00:20]} 31. Ng6+ {[%clk 0:00:09]}  Kg8 {[%clk 0:00:18]} 32. Qa5 {[%clk 0:00:07]}  b6 {[%clk 0:00:15]} 33. Qa4 {[%clk 0:00:01]}  Nxc1 {[%clk 0:00:09]} 34. Qc4+ {[%clk 0:00:01]}  Kh7 {[%clk 0:00:07]} 35. Qe4 {[%clk 0:00:01]}  Kh6 {[%clk 0:00:04]} 0-1


[Site "https://www.chess.com"]

[Event "Titled Tuesday Blitz December 20 Early 2022"]
[White "Rapy, Francois"]
[Black "Zozik, S. Mohammed"]
[WhiteFideId "26041324"]
[BlackFideId "4803280"]
[WhiteElo "1642"]
[BlackElo "2116"]
[Result "0-1"]
[Round "09"]
[TimeControl "180+2"]
[Date "2022.12.20"]
[WhiteClock "0:00:02"]
[BlackClock "0:00:07"]

1. e4 {[%clk 0:02:40]}  c5 {[%clk 0:02:59]} 2. Nc3 {[%clk 0:02:39]}  d6 {[%clk 0:02:59]} 3. d4 {[%clk 0:02:38]}  cxd4 {[%clk 0:02:58]} 4. Qxd4 {[%clk 0:02:39]}  Nc6 {[%clk 0:02:58]} 5. Qd2 {[%clk 0:02:37]}  Nf6 {[%clk 0:02:52]} 6. b3 {[%clk 0:02:36]}  Qa5 {[%clk 0:02:52]} 7. Bb2 {[%clk 0:02:34]}  Bd7 {[%clk 0:02:51]} 8. O-O-O {[%clk 0:02:31]}  Rc8 {[%clk 0:02:51]} 9. Kb1 {[%clk 0:02:30]}  g6 {[%clk 0:02:49]} 10. f3 {[%clk 0:02:16]}  Bg7 {[%clk 0:02:48]} 11. Nd5 {[%clk 0:02:11]}  Qxd2 {[%clk 0:02:35]} 12. Rxd2 {[%clk 0:02:08]}  e5 {[%clk 0:01:50]} 13. Nxf6+ {[%clk 0:02:00]}  Bxf6 {[%clk 0:01:51]} 14. Rxd6 {[%clk 0:02:00]}  Be6 {[%clk 0:01:47]} 15. Bb5 {[%clk 0:01:49]}  O-O {[%clk 0:01:45]} 16. Bxc6 {[%clk 0:01:45]}  bxc6 {[%clk 0:01:45]} 17. Ne2 {[%clk 0:01:40]}  Be7 {[%clk 0:01:45]} 18. Rd3 {[%clk 0:01:35]}  f6 {[%clk 0:01:44]} 19. c4 {[%clk 0:01:20]}  a5 {[%clk 0:01:44]} 20. Nc3 {[%clk 0:01:17]}  Kf7 {[%clk 0:01:37]} 21. Na4 {[%clk 0:01:15]}  h5 {[%clk 0:01:30]} 22. h4 {[%clk 0:01:08]}  Rb8 {[%clk 0:01:28]} 23. Kc2 {[%clk 0:01:01]}  Rb7 {[%clk 0:01:25]} 24. Bc3 {[%clk 0:00:57]}  Ra8 {[%clk 0:01:19]} 25. Bd2 {[%clk 0:00:46]}  f5 {[%clk 0:01:18]} 26. Bc3 {[%clk 0:00:41]}  Kf6 {[%clk 0:01:13]} 27. f4 {[%clk 0:00:36]}  fxe4 {[%clk 0:01:10]} 28. Bxe5+ {[%clk 0:00:35]}  Kf7 {[%clk 0:01:09]} 29. Re3 {[%clk 0:00:31]}  Rd8 {[%clk 0:01:01]} 30. Rd1 {[%clk 0:00:27]}  Ra8 {[%clk 0:00:52]} 31. Rd2 {[%clk 0:00:17]}  Rb4 {[%clk 0:00:49]} 32. Bc3 {[%clk 0:00:16]}  Rb7 {[%clk 0:00:46]} 33. g3 {[%clk 0:00:15]}  Bf5 {[%clk 0:00:41]} 34. Kc1 {[%clk 0:00:13]}  Ba3+ {[%clk 0:00:41]} 35. Bb2 {[%clk 0:00:13]}  Bb4 {[%clk 0:00:40]} 36. Bc3 {[%clk 0:00:13]}  Ba3+ {[%clk 0:00:39]} 37. Kd1 {[%clk 0:00:13]}  Rc8 {[%clk 0:00:35]} 38. Bb2 {[%clk 0:00:11]}  Be7 {[%clk 0:00:33]} 39. Bc3 {[%clk 0:00:11]}  Ra8 {[%clk 0:00:32]} 40. Bb2 {[%clk 0:00:10]}  Ke6 {[%clk 0:00:30]} 41. Bc3 {[%clk 0:00:11]}  Bd6 {[%clk 0:00:24]} 42. Ke1 {[%clk 0:00:10]}  g5 {[%clk 0:00:24]} 43. hxg5 {[%clk 0:00:09]}  h4 {[%clk 0:00:24]} 44. gxh4 {[%clk 0:00:09]}  Bxf4 {[%clk 0:00:24]} 45. Rde2 {[%clk 0:00:08]}  Bxe3 {[%clk 0:00:20]} 46. Rxe3 {[%clk 0:00:09]}  Rh7 {[%clk 0:00:18]} 47. Nc5+ {[%clk 0:00:08]}  Kf7 {[%clk 0:00:17]} 48. Nxe4 {[%clk 0:00:08]}  Rxh4 {[%clk 0:00:11]} 49. Nd6+ {[%clk 0:00:08]}  Kg6 {[%clk 0:00:12]} 50. Rf3 {[%clk 0:00:07]}  Bd7 {[%clk 0:00:08]} 51. Bf6 {[%clk 0:00:06]}  a4 {[%clk 0:00:06]} 52. Re3 {[%clk 0:00:04]}  axb3 {[%clk 0:00:06]} 53. axb3 {[%clk 0:00:05]}  Ra2 {[%clk 0:00:06]} 54. Re2 {[%clk 0:00:04]}  Rh1+ {[%clk 0:00:06]} 55. Kf2 {[%clk 0:00:02]}  Rh2+ {[%clk 0:00:06]} 56. Kf3 {[%clk 0:00:02]}  Rhxe2 {[%clk 0:00:07]} 0-1


[Site "https://www.chess.com"]